fUSD/lending_fUSD_20260620
["ID","MTS","AMOUNT","RATE_DAILY","PERIOD"]
[425795508,1781898655000,-1178.77,0.000356,60]
[425795510,1781898655000,-300.0,0.00035615,10]
[425795512,1781898655000,-300.0,0.00035615,10]
[425795506,1781898655000,-3142.9689,0.00035585,2]
[425795507,1781898655000,-43376.27416852,0.000356,119]
[425795509,1781898655000,-300.0,0.00035615,10]
[425795511,1781898655000,-300.0,0.00035615,10]
[425795514,1781898655000,-500.0,0.00035616,120]
[425795513,1781898655000,-166.62,0.00035616,2]
[425795524,1781898655000,-500.0,0.00035616,120]
[425795517,1781898655000,-500.0,0.00035616,120]
[425795516,1781898655000,-500.0,0.00035616,120]
[425795518,1781898655000,-500.0,0.00035616,120]
[425795519,1781898655000,-500.0,0.00035616,120]
[425795520,1781898655000,-500.0,0.00035616,120]
[425795523,1781898655000,-500.0,0.00035616,120]
[425795522,1781898655000,-500.0,0.00035616,120]
[425795521,1781898655000,-500.0,0.00035616,120]
[425795525,1781898655000,-500.0,0.00035616,120]
[425795528,1781898655000,-343.81300744,0.00035616,120]
[425795535,1781898655000,-8617.696041,0.00035616,30]
[425795529,1781898655000,-500.0,0.00035616,120]
[425795532,1781898655000,-151.0,0.00035616,30]
[425795556,1781898655000,-208.731197,0.00035616,30]
[425795531,1781898655000,-180.26279813,0.00035616,3]
[425795560,1781898655000,-208.731197,0.00035616,30]
[425795587,1781898655000,-151.0,0.00035616,30]
[425795588,1781898655000,-151.0,0.00035616,30]
[425795590,1781898655000,-151.0,0.00035616,7]
[425795589,1781898655000,-151.0,0.00035616,7]
[425795591,1781898655000,-151.0,0.00035616,7]
[425795593,1781898655000,-151.0,0.00035616,7]
[425795592,1781898655000,-151.0,0.00035616,7]
[425795594,1781898655000,-151.0,0.00035616,7]
[425795606,1781898655000,-151.0,0.00035616,7]
[425795596,1781898655000,-151.0,0.00035616,7]
[425795598,1781898655000,-151.0,0.00035616,7]
[425795599,1781898655000,-151.0,0.00035616,7]
[425795595,1781898655000,-151.0,0.00035616,7]
[425795602,1781898655000,-151.0,0.00035616,7]
[425795597,1781898655000,-151.0,0.00035616,7]
[425795601,1781898655000,-151.0,0.00035616,7]
[425795603,1781898655000,-151.0,0.00035616,7]
[425795605,1781898655000,-151.0,0.00035616,7]
[425795604,1781898655000,-151.0,0.00035616,7]
[425795610,1781898655000,-151.0,0.00035616,30]
[425795607,1781898655000,-155.482659,0.00035616,7]
[425795609,1781898655000,-187.483448,0.00035616,7]
[425795559,1781898655000,-208.731197,0.00035616,30]
[425795608,1781898655000,-151.0,0.00035616,7]
[425795586,1781898655000,-674.91,0.00035616,2]
[425795600,1781898655000,-151.0,0.00035616,7]
[425795584,1781898655000,-151.0,0.00035616,10]
[425795583,1781898655000,-151.0,0.00035616,10]
[425795557,1781898655000,-208.731197,0.00035616,30]
[425795562,1781898655000,-208.731197,0.00035616,30]
[425795573,1781898655000,-208.731197,0.00035616,30]
[425795572,1781898655000,-208.731197,0.00035616,30]
[425795561,1781898655000,-208.731197,0.00035616,30]
[425795563,1781898655000,-208.731197,0.00035616,30]
[425795568,1781898655000,-208.731197,0.00035616,30]
[425795571,1781898655000,-208.731197,0.00035616,30]
[425795565,1781898655000,-208.731197,0.00035616,30]
[425795567,1781898655000,-208.731197,0.00035616,30]
[425795570,1781898655000,-208.731197,0.00035616,30]
[425795564,1781898655000,-208.731197,0.00035616,30]
[425795575,1781898655000,-151.0,0.00035616,2]
[425795581,1781898655000,-151.0,0.00035616,10]
[425795569,1781898655000,-208.731197,0.00035616,30]
[425795577,1781898655000,-151.0,0.00035616,2]
[425795585,1781898655000,-185.091884,0.00035616,10]
[425795579,1781898655000,-178.752606,0.00035616,2]
[425795582,1781898655000,-151.0,0.00035616,10]
[425795578,1781898655000,-151.0,0.00035616,2]
[425795576,1781898655000,-151.0,0.00035616,2]
[425795574,1781898655000,-208.731201,0.00035616,30]
[425795566,1781898655000,-208.731197,0.00035616,30]
[425795580,1781898655000,-153.666748,0.00035616,30]
[425795647,1781898656000,-156.154717,0.00035616,30]
[425795653,1781898656000,-156.154717,0.00035616,30]
[425795651,1781898656000,-170.300607,0.00035616,30]
[425795649,1781898656000,-151.0,0.00035616,30]
[425795646,1781898656000,-170.300607,0.00035616,30]
[425795642,1781898656000,-156.154717,0.00035616,30]
[425795644,1781898656000,-151.0,0.00035616,30]
[425795643,1781898656000,-170.300607,0.00035616,30]
[425795641,1781898656000,-151.0,0.00035616,30]
[425795652,1781898656000,-168.706132,0.00035616,30]
[425795645,1781898656000,-156.154717,0.00035616,30]
[425795650,1781898656000,-156.154717,0.00035616,30]
[425795666,1781898656000,-156.154717,0.00035616,30]
[425795656,1781898656000,-170.300607,0.00035616,30]
[425795654,1781898656000,-170.300607,0.00035616,30]
[425795657,1781898656000,-156.154717,0.00035616,30]
[425795659,1781898656000,-156.154717,0.00035616,30]
[425795658,1781898656000,-170.300607,0.00035616,30]
[425795664,1781898656000,-156.154717,0.00035616,30]
[425795661,1781898656000,-156.154717,0.00035616,30]
[425795655,1781898656000,-156.154717,0.00035616,30]
[425795660,1781898656000,-170.300607,0.00035616,30]
[425795662,1781898656000,-170.300607,0.00035616,30]
[425795663,1781898656000,-170.300607,0.00035616,30]
[425795636,1781898656000,-156.154717,0.00035616,30]
[425795648,1781898656000,-170.300607,0.00035616,30]
[425795639,1781898656000,-156.154717,0.00035616,30]
[425795615,1781898656000,-151.0,0.00035616,30]
[425795637,1781898656000,-170.300607,0.00035616,30]
[425795613,1781898656000,-151.0,0.00035616,30]
[425795669,1781898656000,-170.300604,0.00035616,30]
[425795612,1781898656000,-151.0,0.00035616,30]
[425795616,1781898656000,-151.0,0.00035616,30]
[425795617,1781898656000,-190.66568,0.00035616,30]
[425795614,1781898656000,-151.0,0.00035616,30]
[425795611,1781898656000,-151.0,0.00035616,30]
[425795619,1781898656000,-156.154717,0.00035616,30]
[425795621,1781898656000,-156.154717,0.00035616,30]
[425795623,1781898656000,-170.300607,0.00035616,30]
[425795620,1781898656000,-151.0,0.00035616,30]
[425795618,1781898656000,-151.0,0.00035616,30]
[425795640,1781898656000,-170.300607,0.00035616,30]
[425795629,1781898656000,-151.0,0.00035616,30]
[425795624,1781898656000,-156.154717,0.00035616,30]
[425795626,1781898656000,-156.154717,0.00035616,30]
[425795625,1781898656000,-170.300607,0.00035616,30]
[425795627,1781898656000,-151.0,0.00035616,30]
[425795628,1781898656000,-170.300607,0.00035616,30]
[425795630,1781898656000,-156.154717,0.00035616,30]
[425795633,1781898656000,-156.154717,0.00035616,30]
[425795635,1781898656000,-151.0,0.00035616,30]
[425795638,1781898656000,-151.0,0.00035616,30]
[425795634,1781898656000,-170.300607,0.00035616,30]
[425795631,1781898656000,-170.300607,0.00035616,30]
[425795632,1781898656000,-151.0,0.00035616,30]
[425795622,1781898656000,-151.0,0.00035616,30]
[425795670,1781898656000,-151.0,0.00035616,3]
[425795667,1781898656000,-170.300607,0.00035616,30]
[425795665,1781898656000,-170.300607,0.00035616,30]
[425795693,1781898656000,-151.0,0.00035616,30]
[425795703,1781898656000,-151.0,0.00035616,30]
[425795701,1781898656000,-151.0,0.00035616,30]
[425795707,1781898656000,-151.0,0.00035616,30]
[425795702,1781898656000,-151.0,0.00035616,30]
[425795709,1781898656000,-151.0,0.00035616,30]
[425795708,1781898656000,-151.0,0.00035616,30]
[425795706,1781898656000,-151.0,0.00035616,30]
[425795710,1781898656000,-151.0,0.00035616,30]
[425795705,1781898656000,-151.0,0.00035616,30]
[425795704,1781898656000,-228.406586,0.00035616,30]
[425795711,1781898656000,-151.0,0.00035616,30]
[425795692,1781898656000,-151.0,0.00035616,30]
[425795713,1781898656000,-151.0,0.00035616,30]
[425795715,1781898656000,-239.174757,0.00035616,30]
[425795714,1781898656000,-151.0,0.00035616,30]
[425795721,1781898656000,-151.0,0.00035616,30]
[425795712,1781898656000,-151.0,0.00035616,30]
[425795716,1781898656000,-624.408531,0.00035616,120]
[425795722,1781898656000,-151.0,0.00035616,30]
[425795676,1781898656000,-151.0,0.00035616,3]
[425795719,1781898656000,-151.0,0.00035616,30]
[425795718,1781898656000,-151.0,0.00035616,30]
[425795720,1781898656000,-151.0,0.00035616,30]
[425795725,1781898656000,-151.0,0.00035616,30]
[425795724,1781898656000,-151.0,0.00035616,30]
[425795723,1781898656000,-151.0,0.00035616,30]
[425795695,1781898656000,-151.0,0.00035616,30]
[425795717,1781898656000,-151.0,0.00035616,30]
[425795697,1781898656000,-151.0,0.00035616,30]
[425795694,1781898656000,-151.0,0.00035616,30]
[425795668,1781898656000,-156.154717,0.00035616,30]
[425795673,1781898656000,-151.0,0.00035616,3]
[425795672,1781898656000,-151.0,0.00035616,3]
[425795675,1781898656000,-151.0,0.00035616,3]
[425795674,1781898656000,-151.0,0.00035616,3]
[425795677,1781898656000,-151.0,0.00035616,3]
[425795678,1781898656000,-151.0,0.00035616,3]
[425795686,1781898656000,-151.0,0.00035616,30]
[425795679,1781898656000,-151.0,0.00035616,3]
[425795681,1781898656000,-151.0,0.00035616,30]
[425795687,1781898656000,-151.0,0.00035616,30]
[425795671,1781898656000,-151.0,0.00035616,3]
[425795685,1781898656000,-151.0,0.00035616,30]
[425795682,1781898656000,-151.0,0.00035616,30]
[425795696,1781898656000,-151.0,0.00035616,30]
[425795688,1781898656000,-157.091868,0.00035616,30]
[425795698,1781898656000,-151.0,0.00035616,30]
[425795700,1781898656000,-151.0,0.00035616,30]
[425795691,1781898656000,-151.0,0.00035616,30]
[425795699,1781898656000,-151.0,0.00035616,30]
[425795689,1781898656000,-151.0,0.00035616,30]
[425795683,1781898656000,-151.0,0.00035616,30]
[425795680,1781898656000,-152.745022,0.00035616,3]
[425795684,1781898656000,-151.0,0.00035616,30]
[425795690,1781898656000,-151.0,0.00035616,30]
[425795757,1781898657000,-158.27081683,0.00035673,3]
[425795753,1781898657000,-4336.51,0.00035649,2]
[425795752,1781898657000,-464.593535,0.00035636,2]
[425795758,1781898657000,-300.0,0.00035692,10]
[425795756,1781898657000,-300.0,0.00035671,10]
[425795755,1781898657000,-300.0,0.00035671,10]
[425795751,1781898657000,-169.144506,0.00035616,30]
[425795760,1781898657000,-300.0,0.00035692,10]
[425795761,1781898657000,-962.98739463,0.00035693,2]
[425795754,1781898657000,-300.0,0.00035671,10]
[425795763,1781898657000,-964.02084253,0.00035693,2]
[425795768,1781898657000,-893.87870886,0.00035697,2]
[425795767,1781898657000,-990.64532294,0.00035693,2]
[425795764,1781898657000,-853.1367247,0.00035693,2]
[425795762,1781898657000,-752.37304804,0.00035693,2]
[425795759,1781898657000,-300.0,0.00035692,10]
[425795765,1781898657000,-930.07027353,0.00035693,2]
[425795770,1781898657000,-300.0,0.00035698,10]
[425795780,1781898657000,-300.0,0.00035728,10]
[425795750,1781898657000,-151.0,0.00035616,30]
[425795766,1781898657000,-793.78128148,0.00035693,2]
[425795748,1781898657000,-151.0,0.00035616,30]
[425795737,1781898657000,-151.0,0.00035616,30]
[425795747,1781898657000,-151.0,0.00035616,30]
[425795769,1781898657000,-300.0,0.00035698,10]
[425795728,1781898657000,-229.436252,0.00035616,30]
[425795729,1781898657000,-151.0,0.00035616,30]
[425795733,1781898657000,-151.0,0.00035616,30]
[425795727,1781898657000,-151.0,0.00035616,30]
[425795726,1781898657000,-151.0,0.00035616,30]
[425795732,1781898657000,-151.0,0.00035616,30]
[425795730,1781898657000,-151.0,0.00035616,30]
[425795735,1781898657000,-151.0,0.00035616,30]
[425795749,1781898657000,-151.0,0.00035616,30]
[425795734,1781898657000,-151.0,0.00035616,30]
[425795738,1781898657000,-151.0,0.00035616,30]
[425795739,1781898657000,-151.0,0.00035616,30]
[425795744,1781898657000,-151.0,0.00035616,30]
[425795742,1781898657000,-151.0,0.00035616,30]
[425795741,1781898657000,-151.0,0.00035616,30]
[425795746,1781898657000,-151.0,0.00035616,30]
[425795740,1781898657000,-151.0,0.00035616,30]
[425795745,1781898657000,-151.0,0.00035616,30]
[425795743,1781898657000,-211.063047,0.00035616,30]
[425795736,1781898657000,-151.0,0.00035616,30]
[425795772,1781898657000,-300.0,0.00035699,10]
[425795731,1781898657000,-151.0,0.00035616,30]
[425795773,1781898657000,-300.0,0.00035699,10]
[425795800,1781898657000,-1276.0,0.00035919,2]
[425795801,1781898657000,-1229.0,0.00035919,2]
[425795799,1781898657000,-1360.0,0.00035919,2]
[425795802,1781898657000,-150.0,0.00035919,2]
[425795803,1781898657000,-934.0,0.00035919,2]
[425795804,1781898657000,-6081.0,0.00035919,2]
[425795806,1781898657000,-158.27081683,0.00035947,3]
[425795809,1781898657000,-212.05402644,0.00035972,2]
[425795807,1781898657000,-3142.9689,0.00035953,2]
[425795796,1781898657000,-9990.94327511,0.0003591,2]
[425795808,1781898657000,-290.3986294,0.00035962,2]
[425795817,1781898657000,-315.45,0.00036,2]
[425795812,1781898657000,-1693.0,0.00035975,7]
[425795816,1781898657000,-315.45,0.00036,2]
[425795811,1781898657000,-162.73,0.00035975,2]
[425795814,1781898657000,-162.74,0.00035977,2]
[425795810,1781898657000,-439.19,0.00035972,2]
[425795819,1781898657000,-69307.94535158,0.00036,14]
[425795818,1781898657000,-315.45,0.00036,2]
[425795771,1781898657000,-307.29468666,0.00035698,10]
[425795813,1781898657000,-1600.722,0.00035976,2]
[425795798,1781898657000,-383.0,0.00035919,2]
[425795815,1781898657000,-4336.51,0.00035999,2]
[425795805,1781898657000,-4336.51,0.00035933,2]
[425795797,1781898657000,-3560.0,0.00035919,2]
[425795775,1781898657000,-4336.51,0.00035723,2]
[425795779,1781898657000,-300.0,0.00035727,10]
[425795777,1781898657000,-300.0,0.00035727,10]
[425795778,1781898657000,-300.0,0.00035727,10]
[425795774,1781898657000,-3142.9689,0.00035708,2]
[425795776,1781898657000,-300.0,0.00035727,10]
[425795781,1781898657000,-300.0,0.00035728,10]
[425795784,1781898657000,-4336.51,0.00035795,2]
[425795783,1781898657000,-972.4798767,0.00035755,2]
[425795785,1781898657000,-10091.90896854,0.000358,2]
[425795786,1781898657000,-2000.0,0.000358,7]
[425795782,1781898657000,-305.23,0.00035734,2]
[425795790,1781898657000,-150.0,0.00035899,2]
[425795788,1781898657000,-4336.51,0.00035865,2]
[425795787,1781898657000,-3142.9689,0.00035831,2]
[425795791,1781898657000,-1215.31,0.000359,106]
[425795792,1781898657000,-600.0,0.000359,13]
[425795793,1781898657000,-3112.13563795,0.000359,30]
[425795795,1781898657000,-3112.13563793,0.000359,30]
[425795794,1781898657000,-3112.13563793,0.000359,30]
[425795789,1781898657000,-231014.0,0.0003589,30]
[425795824,1781898658000,-1641.18336086,0.00036,14]
[425795821,1781898658000,-792.24,0.0002953,2]
[425795820,1781898658000,-150.1,0.00025786,2]
[425795822,1781898658000,-584.249786,0.000301,2]
[425795825,1781898658000,182.71623394,0.00016085,2]
[425795823,1781898658000,-998.84158842,0.00036,14]
[425795826,1781898658000,-17.28376606,0.00016085,2]
[425795831,1781898658000,-437.21500001,0.00031006,2]
[425795832,1781898658000,-822.16499999,0.00036,14]
[425795830,1781898658000,-355.01499999,0.00031006,2]
[425795828,1781898658000,-3016.28942219,0.00036,14]
[425795827,1781898658000,-2074.75709195,0.000283,2]
[425795829,1781898658000,-261.67500001,0.00036,14]
[425795834,1781898684000,30000.0,0.00015,2]
[425795836,1781898685000,30000.0,0.00015,2]
[425795835,1781898685000,30000.0,0.00015,2]
[425795837,1781898686000,30000.0,0.00015,2]
[425795839,1781898687000,30000.0,0.00015,2]
[425795838,1781898687000,30000.0,0.00015,2]
[425795840,1781898688000,30000.0,0.00015,2]
[425795842,1781898689000,30000.0,0.00015,2]
[425795841,1781898689000,30000.0,0.00015,2]
[425795843,1781898690000,30000.0,0.00015,2]
[425795846,1781898847000,500.0,0.00015,2]
[425795848,1781898932000,-1500.72315484,0.000155,2]
[425795850,1781898945000,-20965.16392305,0.000155,2]
[425795851,1781898959000,-7534.11292211,0.000155,2]
[425795852,1781899011000,-971.29331867,0.000155,2]
[425795853,1781899025000,-20965.16392305,0.000155,2]
[425795854,1781899038000,-4226.00380248,0.000154,2]
[425795855,1781899039000,500.0,0.00015,2]
[425795857,1781899091000,-600.0,0.0001545,2]
[425795858,1781899145000,-298.83546561,0.0001545,2]
[425795859,1781899204000,1050.0,0.00019449,30]
[425795865,1781899234000,-8063.54275828,0.000155,2]
[425795862,1781899234000,-500.0,0.00015499,2]
[425795861,1781899234000,-413.87045163,0.00015498,2]
[425795860,1781899234000,-172.99479077,0.0001545,2]
[425795863,1781899234000,-205.03861385,0.00015499,2]
[425795866,1781899234000,-30000.0,0.000155,2]
[425795864,1781899234000,-296.92029993,0.00015499,2]
[425795873,1781899234000,-30000.0,0.000155,2]
[425795868,1781899234000,-30000.0,0.000155,2]
[425795869,1781899234000,-30000.0,0.000155,2]
[425795870,1781899234000,-30000.0,0.000155,2]
[425795871,1781899234000,-30000.0,0.000155,2]
[425795872,1781899234000,-30000.0,0.000155,2]
[425795867,1781899234000,-30000.0,0.000155,2]
[425795874,1781899269000,4000.0,0.00015,2]
[425795875,1781899289000,500.0,0.00015,2]
[425795876,1781899365000,-595.0,0.00015499,2]
[425795878,1781899419000,-192.94070007,0.000155,2]
[425795879,1781899424000,250.0,0.00014,2]
[425795880,1781899473000,-500.0,0.00015499,2]
[425795881,1781899527000,-245.83963933,0.000155,2]
[425795882,1781899546000,500.0,0.00015,2]
[425795883,1781899580000,-172.99479077,0.000155,2]
[425795884,1781899609000,340.68335112,0.00015,2]
[425795885,1781899634000,-150.0,0.00015654,2]
[425795887,1781899688000,-493.52702969,0.00015999,2]
[425795888,1781899741000,-207.84420995,0.00015999,2]
[425795889,1781899752000,-4100.0,0.00016,2]
[425795890,1781899795000,-1100.29255697,0.00016,2]
[425795891,1781899808000,-1100.29255697,0.00016,2]
[425795906,1781899831000,-499.07432918,0.00016,2]
[425795909,1781899831000,-520.4408936,0.00016243,2]
[425795910,1781899831000,-345.46892078,0.00016253,2]
[425795907,1781899831000,-500.0,0.00016,2]
[425795911,1781899831000,-2892.80770274,0.00016254,2]
[425795916,1781899831000,-300.0,0.00016286,2]
[425795908,1781899831000,-2700.34055688,0.00016,2]
[425795915,1781899831000,-3989.45657852,0.00016286,2]
[425795914,1781899831000,-2656.84342148,0.00016254,2]
[425795912,1781899831000,-4008.33165446,0.00016254,2]
[425795913,1781899831000,-487.99924302,0.00016254,2]
[425795917,1781899832000,-499.1807737,0.00016286,2]
[425795960,1781899838000,-500.0,0.00016438,2]
[425795966,1781899838000,-500.0,0.00016438,2]
[425795962,1781899838000,-500.0,0.00016438,2]
[425795963,1781899838000,-500.0,0.00016438,2]
[425795968,1781899838000,-167.64493964,0.00016447,2]
[425795965,1781899838000,-500.0,0.00016438,2]
[425795958,1781899838000,-500.0,0.00016438,2]
[425795959,1781899838000,-500.0,0.00016438,2]
[425795957,1781899838000,-500.0,0.00016438,2]
[425795948,1781899838000,-500.0,0.00016438,2]
[425795964,1781899838000,-500.0,0.00016438,2]
[425795961,1781899838000,-500.0,0.00016438,2]
[425795981,1781899838000,-500.0,0.00016721,2]
[425795969,1781899838000,-150.0,0.00016447,2]
[425795971,1781899838000,-187.14232369,0.00016447,2]
[425795980,1781899838000,-500.0,0.00016721,2]
[425795975,1781899838000,-4105.95,0.00016567,2]
[425795976,1781899838000,-990.3,0.00016567,2]
[425795972,1781899838000,-166.66,0.00016518,2]
[425795970,1781899838000,-150.0,0.00016447,2]
[425795973,1781899838000,-164.89,0.00016567,2]
[425795978,1781899838000,-500.0,0.0001665,7]
[425795979,1781899838000,-500.0,0.00016721,2]
[425795977,1781899838000,-155.42,0.0001665,7]
[425795955,1781899838000,-500.0,0.00016438,2]
[425795967,1781899838000,-150.0,0.00016447,2]
[425795956,1781899838000,-500.0,0.00016438,2]
[425795935,1781899838000,-500.0,0.00016438,2]
[425795949,1781899838000,-500.0,0.00016438,2]
[425795927,1781899838000,-158796.16264778,0.00016286,2]
[425795928,1781899838000,-7231.51,0.00016286,2]
[425795929,1781899838000,-1000.0,0.00016307,2]
[425795930,1781899838000,-5903.09714831,0.00016318,2]
[425795933,1781899838000,-500.0,0.00016438,2]
[425795932,1781899838000,-240.4,0.00016438,2]
[425795934,1781899838000,-500.0,0.00016438,2]
[425795931,1781899838000,-445.64,0.00016328,2]
[425795936,1781899838000,-500.0,0.00016438,2]
[425795946,1781899838000,-500.0,0.00016438,2]
[425795937,1781899838000,-500.0,0.00016438,2]
[425795954,1781899838000,-500.0,0.00016438,2]
[425795941,1781899838000,-500.0,0.00016438,2]
[425795945,1781899838000,-385.80926324,0.00016438,2]
[425795938,1781899838000,-500.0,0.00016438,2]
[425795943,1781899838000,-500.0,0.00016438,2]
[425795942,1781899838000,-500.0,0.00016438,2]
[425795939,1781899838000,-500.0,0.00016438,2]
[425795944,1781899838000,-500.0,0.00016438,2]
[425795947,1781899838000,-500.0,0.00016438,2]
[425795951,1781899838000,-500.0,0.00016438,2]
[425795953,1781899838000,-500.0,0.00016438,2]
[425795952,1781899838000,-500.0,0.00016438,2]
[425795950,1781899838000,-500.0,0.00016438,2]
[425795940,1781899838000,-500.0,0.00016438,2]
[425795982,1781899838000,-195.13115595,0.00016721,2]
[425796019,1781899838000,-166.66,0.00018257,2]
[425795983,1781899838000,-500.0,0.00016745,2]
[425796015,1781899838000,-350.73,0.00018,2]
[425796025,1781899838000,-1449.49,0.00018648,2]
[425796016,1781899838000,-307.64,0.00018,2]
[425796014,1781899838000,-164.89,0.00017934,2]
[425796023,1781899838000,-11425.83381893,0.00018515,2]
[425796020,1781899838000,-55242.51,0.00018356,2]
[425796021,1781899838000,-162.0,0.0001836,2]
[425796018,1781899838000,-1449.49,0.00018225,2]
[425796017,1781899838000,-1555.5,0.00018116,2]
[425796024,1781899838000,-164.89,0.00018618,2]
[425796027,1781899838000,-269.29139067,0.00019029,2]
[425796011,1781899838000,-232.71,0.00017686,2]
[425796037,1781899838000,-173.71,0.00019813,2]
[425796038,1781899838000,-11425.83381893,0.00019955,2]
[425796026,1781899838000,-1613.0535,0.00018664,2]
[425796029,1781899838000,-232.71,0.00019056,2]
[425796030,1781899838000,-3707.84680792,0.0001915,2]
[425796035,1781899838000,-234.0,0.00019452,2]
[425796036,1781899838000,-1734.62772924,0.0001976,2]
[425796032,1781899838000,-164.89,0.00019302,2]
[425796033,1781899838000,-2500.0,0.00019449,2]
[425796034,1781899838000,-200.0,0.00019449,2]
[425796031,1781899838000,-1672.7364795,0.00019212,2]
[425795986,1781899838000,-1449.49,0.00016953,2]
[425796028,1781899838000,-500.0,0.00019029,2]
[425796012,1781899838000,-1449.49,0.00017801,2]
[425796022,1781899838000,-240.4,0.0001841,2]
[425796010,1781899838000,-173.71,0.00017612,2]
[425796009,1781899838000,-1500.0,0.00017568,2]
[425795985,1781899838000,-500.0,0.00016924,7]
[425795987,1781899838000,-177.29,0.0001701,2]
[425795989,1781899838000,-195.0,0.0001705,2]
[425795990,1781899838000,-11425.83381893,0.00017076,2]
[425795988,1781899838000,-200.0,0.0001701,2]
[425795993,1781899838000,-1000.0,0.0001719,2]
[425795991,1781899838000,-500.0,0.00017132,2]
[425795999,1781899838000,-196.13612632,0.00017254,2]
[425795996,1781899838000,-500.0,0.00017239,2]
[425795995,1781899838000,-166.66,0.00017214,2]
[425795998,1781899838000,-164.89,0.00017251,2]
[425795992,1781899838000,-259.58,0.00017176,2]
[425795984,1781899838000,-166.66,0.00016866,2]
[425796006,1781899838000,-150.0,0.00017383,2]
[425796001,1781899838000,-500.0,0.00017254,2]
[425795997,1781899838000,-500.0,0.00017239,2]
[425796000,1781899838000,-500.0,0.00017254,2]
[425796003,1781899838000,-168.64,0.00017288,2]
[425796013,1781899838000,-166.66,0.00017909,2]
[425796005,1781899838000,-1449.49,0.00017377,2]
[425796002,1781899838000,-160.96,0.00017257,2]
[425796007,1781899838000,-287.34,0.00017399,2]
[425796004,1781899838000,-152.39364804,0.00017318,2]
[425796008,1781899838000,-166.66,0.00017562,2]
[425795994,1781899838000,-500.0,0.0001721,2]
[425796073,1781899839000,-15676.39,0.00020798,2]
[425796082,1781899839000,-754.0,0.00021,2]
[425796072,1781899839000,-24142.2,0.00020798,2]
[425796081,1781899839000,-180.0,0.00021,2]
[425796071,1781899839000,-69749.5627392,0.00020677,2]
[425796069,1781899839000,-288.19985824,0.0002058,2]
[425796070,1781899839000,-4856.5131327,0.00020677,2]
[425796066,1781899839000,-150.0,0.0002058,2]
[425796067,1781899839000,-150.0,0.0002058,2]
[425796077,1781899839000,-1865.36488656,0.00020856,2]
[425796062,1781899839000,-10813.39,0.00020548,2]
[425796076,1781899839000,-248.35813867,0.00020799,10]
[425796090,1781899839000,-158.0,0.00021,2]
[425796075,1781899839000,-11399.20448474,0.00020799,2]
[425796078,1781899839000,-500.0,0.00020899,2]
[425796080,1781899839000,-236.0,0.00021,2]
[425796079,1781899839000,-223.0,0.00021,2]
[425796083,1781899839000,-1112.0,0.00021,2]
[425796087,1781899839000,-165.0,0.00021,2]
[425796086,1781899839000,-599.0,0.00021,2]
[425796084,1781899839000,-240.0,0.00021,2]
[425796085,1781899839000,-167.0,0.00021,2]
[425796088,1781899839000,-301.0,0.00021,2]
[425796089,1781899839000,-671.0,0.00021,2]
[425796074,1781899839000,-298.24,0.00020798,2]
[425796063,1781899839000,-69749.5627392,0.00020579,2]